[Event "*** Titled Tuesday Blitz"]
[Site "Chess.com"]
[Date "2021.04.06"]
[Round "2"]
[White "AlexPapasimakopoulos"]
[Black "tylityli"]
[Result "1/2-1/2"]
[WhiteElo "2609"]
[BlackElo "2324"]
[TimeControl "180+1"]
[EndTime "10:16:56 PDT"]
[Termination "Game drawn by repetition"]

1. d4 {[%clk 0:03:00.9]} 1... Nf6 {[%clk 0:02:58.5]} 2. c4 {[%clk 0:03:01]} 2...
e6 {[%clk 0:02:58.2]} 3. Nc3 {[%clk 0:03:01.2]} 3... Bb4 {[%clk 0:02:56.3]} 4.
Qc2 {[%clk 0:03:00.7]} 4... O-O {[%clk 0:02:53.4]} 5. a3 {[%clk 0:03:00.7]} 5...
Bxc3+ {[%clk 0:02:53]} 6. Qxc3 {[%clk 0:03:01.6]} 6... d6 {[%clk 0:02:51.5]} 7.
f3 {[%clk 0:03:01.4]} 7... Qe7 {[%clk 0:02:50.3]} 8. e4 {[%clk 0:03:01.2]} 8...
e5 {[%clk 0:02:50.5]} 9. d5 {[%clk 0:03:00.2]} 9... a5 {[%clk 0:02:50.2]} 10. b3
{[%clk 0:02:59.1]} 10... h6 {[%clk 0:02:49.7]} 11. Bd3 {[%clk 0:02:59.1]} 11...
Nbd7 {[%clk 0:02:48.8]} 12. Ne2 {[%clk 0:02:59.4]} 12... Nc5 {[%clk 0:02:49]}
13. Bc2 {[%clk 0:02:59.9]} 13... Bd7 {[%clk 0:02:45.5]} 14. O-O {[%clk
0:03:00.3]} 14... b5 {[%clk 0:02:45.4]} 15. b4 {[%clk 0:02:57.7]} 15... axb4
{[%clk 0:02:43.6]} 16. axb4 {[%clk 0:02:58.6]} 16... Na4 {[%clk 0:02:33.7]} 17.
Bxa4 {[%clk 0:02:58]} 17... Rxa4 {[%clk 0:02:25.4]} 18. Rxa4 {[%clk 0:02:56.6]}
18... bxa4 {[%clk 0:02:26.3]} 19. Be3 {[%clk 0:02:51.5]} 19... Ra8 {[%clk
0:02:24.6]} 20. Ra1 {[%clk 0:02:48.5]} 20... Qd8 {[%clk 0:02:10.5]} 21. b5
{[%clk 0:02:47.3]} 21... Nh5 {[%clk 0:01:53]} 22. Qb4 {[%clk 0:02:43.6]} 22...
f5 {[%clk 0:01:47.7]} 23. Rxa4 {[%clk 0:02:39.8]} 23... fxe4 {[%clk 0:01:43.2]}
24. fxe4 {[%clk 0:02:37.9]} 24... Rxa4 {[%clk 0:01:37.6]} 25. Qxa4 {[%clk
0:02:38.8]} 25... Qh4 {[%clk 0:01:37.7]} 26. Ng3 {[%clk 0:02:00.4]} 26... Nxg3
{[%clk 0:01:34.6]} 27. hxg3 {[%clk 0:01:59.3]} 27... Qxe4 {[%clk 0:01:28.4]} 28.
Qb3 {[%clk 0:01:58.5]} 28... Bf5 {[%clk 0:01:25.8]} 29. Kf2 {[%clk 0:01:45.2]}
29... Qd3 {[%clk 0:01:08.3]} 30. Qa2 {[%clk 0:01:37.1]} 30... Be4 {[%clk
0:00:55.1]} 31. Qe2 {[%clk 0:01:31.5]} 31... Kf7 {[%clk 0:00:50.1]} 32. Qh5+
{[%clk 0:01:30.4]} 32... Bg6 {[%clk 0:00:48.5]} 33. Qf3+ {[%clk 0:01:29.8]}
33... Ke7 {[%clk 0:00:47.1]} 34. Qe2 {[%clk 0:01:28.9]} 34... Qf5+ {[%clk
0:00:42.5]} 35. Qf3 {[%clk 0:01:26.6]} 35... Qc2+ {[%clk 0:00:39.6]} 36. Qe2
{[%clk 0:01:26.8]} 36... Qf5+ {[%clk 0:00:38.2]} 37. Kg1 {[%clk 0:01:27.2]}
37... Qd3 {[%clk 0:00:36.8]} 38. Kf2 {[%clk 0:01:23.1]} 38... Qf5+ {[%clk
0:00:36.1]} 1/2-1/2

[Event "*** Titled Tuesday Blitz"]
[Site "Chess.com"]
[Date "2021.04.06"]
[Round "2"]
[White "RD4ever"]
[Black "LawrenceTrent"]
[Result "1-0"]
[WhiteElo "2888"]
[BlackElo "2558"]
[TimeControl "180+1"]
[EndTime "10:16:59 PDT"]
[Termination "RD4ever won by resignation"]

1. d4 {[%clk 0:03:00.9]} 1... d5 {[%clk 0:02:35.5]} 2. c4 {[%clk 0:02:59.8]}
2... e5 {[%clk 0:02:34.5]} 3. dxe5 {[%clk 0:02:58.9]} 3... d4 {[%clk 0:02:34.3]}
4. Nf3 {[%clk 0:02:59.4]} 4... Nc6 {[%clk 0:02:32.6]} 5. Nbd2 {[%clk 0:02:59.9]}
5... Nh6 {[%clk 0:02:31.7]} 6. Nb3 {[%clk 0:02:58]} 6... Ng4 {[%clk 0:02:30.9]}
7. a3 {[%clk 0:02:49.9]} 7... Ngxe5 {[%clk 0:02:23.8]} 8. Nxe5 {[%clk
0:02:42.6]} 8... Nxe5 {[%clk 0:02:23.7]} 9. Qxd4 {[%clk 0:02:43.3]} 9... Qxd4
{[%clk 0:02:22.9]} 10. Nxd4 {[%clk 0:02:44.2]} 10... Nxc4 {[%clk 0:02:23.7]} 11.
e4 {[%clk 0:02:41.7]} 11... Nd6 {[%clk 0:02:21.6]} 12. e5 {[%clk 0:02:39]} 12...
Nf5 {[%clk 0:02:21.9]} 13. Nb5 {[%clk 0:02:37.5]} 13... Kd8 {[%clk 0:02:22.2]}
14. Bg5+ {[%clk 0:02:36.8]} 14... Be7 {[%clk 0:02:20.3]} 15. O-O-O+ {[%clk
0:02:30.4]} 15... Bd7 {[%clk 0:02:20.7]} 16. h4 {[%clk 0:02:22.9]} 16... a6
{[%clk 0:02:16.4]} 17. Bd3 {[%clk 0:02:18.5]} 17... Kc8 {[%clk 0:01:45]} 18.
Bxf5 {[%clk 0:02:16.7]} 18... Bxg5+ {[%clk 0:01:44]} 19. hxg5 {[%clk 0:02:16.7]}
19... Bxf5 {[%clk 0:01:44.9]} 20. Nd4 {[%clk 0:02:17.6]} 20... Bd7 {[%clk
0:01:41.9]} 21. f4 {[%clk 0:02:14.5]} 21... c5 {[%clk 0:01:40.9]} 22. Nc2 {[%clk
0:02:07.9]} 22... Kc7 {[%clk 0:01:26.3]} 23. Ne3 {[%clk 0:02:06.3]} 23... Rad8
{[%clk 0:01:20.5]} 24. g3 {[%clk 0:01:44.4]} 24... Bc6 {[%clk 0:01:08.5]} 25.
Rxd8 {[%clk 0:01:39.7]} 25... Kxd8 {[%clk 0:01:09.4]} 26. Rd1+ {[%clk
0:01:39.3]} 26... Kc7 {[%clk 0:01:08.4]} 27. Nf5 {[%clk 0:01:39.6]} 27... g6
{[%clk 0:01:05.8]} 28. Nh6 {[%clk 0:01:33.7]} 28... Rf8 {[%clk 0:01:02.6]} 29.
Rd6 {[%clk 0:01:30.6]} 29... Bd7 {[%clk 0:01:00.3]} 30. Rf6 {[%clk 0:01:12.7]}
30... Be6 {[%clk 0:00:53]} 31. g4 {[%clk 0:01:13]} 31... Bd5 {[%clk 0:00:46.8]}
32. f5 {[%clk 0:01:05.8]} 32... Kd7 {[%clk 0:00:38.2]} 33. Rd6+ {[%clk
0:01:04.4]} 1-0

[Event "*** Titled Tuesday Blitz"]
[Site "Chess.com"]
[Date "2021.04.06"]
[Round "2"]
[White "Smirnov_Pavel"]
[Black "1g41-0"]
[Result "1-0"]
[WhiteElo "2884"]
[BlackElo "2557"]
[TimeControl "180+1"]
[EndTime "10:17:00 PDT"]
[Termination "Smirnov_Pavel won by resignation"]

1. d4 {[%clk 0:02:34.6]} 1... d5 {[%clk 0:02:59.2]} 2. c4 {[%clk 0:02:21]} 2...
dxc4 {[%clk 0:02:51.7]} 3. Nf3 {[%clk 0:02:15.6]} 3... Nf6 {[%clk 0:02:50.2]} 4.
e3 {[%clk 0:02:12.9]} 4... a6 {[%clk 0:02:47.3]} 5. Bxc4 {[%clk 0:02:10.6]} 5...
e6 {[%clk 0:02:46]} 6. O-O {[%clk 0:02:08.9]} 6... c5 {[%clk 0:02:44]} 7. Nc3
{[%clk 0:02:07.8]} 7... b5 {[%clk 0:02:43.5]} 8. Bb3 {[%clk 0:02:07.7]} 8... Bb7
{[%clk 0:02:42.9]} 9. e4 {[%clk 0:02:06.3]} 9... Nxe4 {[%clk 0:02:23.9]} 10.
Nxe4 {[%clk 0:01:56.8]} 10... Bxe4 {[%clk 0:02:24.8]} 11. Re1 {[%clk 0:01:56.6]}
11... Bd5 {[%clk 0:02:22.1]} 12. dxc5 {[%clk 0:01:51.9]} 12... Bxb3 {[%clk
0:02:20.8]} 13. Qxb3 {[%clk 0:01:49.9]} 13... Bxc5 {[%clk 0:02:19.1]} 14. Qc3
{[%clk 0:01:48.9]} 14... Nd7 {[%clk 0:02:01.2]} 15. Qxg7 {[%clk 0:01:46]} 15...
Qf6 {[%clk 0:02:00]} 16. Qg3 {[%clk 0:01:33.7]} 16... Qg6 {[%clk 0:01:29.2]} 17.
Qc7 {[%clk 0:01:27.9]} 17... Rg8 {[%clk 0:01:25]} 18. Bg5 {[%clk 0:00:46.6]}
18... h6 {[%clk 0:00:49.5]} 19. Rad1 {[%clk 0:00:41.8]} 19... hxg5 {[%clk
0:00:49]} 20. Qxd7+ {[%clk 0:00:34.3]} 20... Kf8 {[%clk 0:00:48.2]} 21. Qc6
{[%clk 0:00:35.2]} 21... Qc2 {[%clk 0:00:41.2]} 22. Qxa8+ {[%clk 0:00:33.5]}
22... Kg7 {[%clk 0:00:40.9]} 23. Qe4 {[%clk 0:00:34.4]} 23... Qxf2+ {[%clk
0:00:40.5]} 24. Kh1 {[%clk 0:00:33.6]} 1-0

[Event "*** Titled Tuesday Blitz"]
[Site "Chess.com"]
[Date "2021.04.06"]
[Round "2"]
[White "MaxLeto"]
[Black "Firegrizzly"]
[Result "0-1"]
[WhiteElo "2365"]
[BlackElo "2628"]
[TimeControl "180+1"]
[EndTime "10:17:01 PDT"]
[Termination "Firegrizzly won on time"]

1. h4 {[%clk 0:03:00.9]} 1... d5 {[%clk 0:02:57.6]} 2. h5 {[%clk 0:03:01.8]}
2... e5 {[%clk 0:02:56.1]} 3. c3 {[%clk 0:03:02.7]} 3... Nc6 {[%clk 0:02:54.9]}
4. d4 {[%clk 0:03:03.6]} 4... h6 {[%clk 0:02:51.3]} 5. dxe5 {[%clk 0:03:03.2]}
5... Nxe5 {[%clk 0:02:51.1]} 6. Bf4 {[%clk 0:03:03.8]} 6... Nc4 {[%clk
0:02:48.8]} 7. Qc2 {[%clk 0:02:40.9]} 7... Bd6 {[%clk 0:02:44.9]} 8. Bxd6 {[%clk
0:02:34]} 8... Nxd6 {[%clk 0:02:41.6]} 9. e3 {[%clk 0:02:32.1]} 9... Bf5 {[%clk
0:02:41.3]} 10. Bd3 {[%clk 0:02:17.4]} 10... Bxd3 {[%clk 0:02:41]} 11. Qxd3
{[%clk 0:02:18.3]} 11... Nf6 {[%clk 0:02:41.3]} 12. Nd2 {[%clk 0:02:12.8]} 12...
Qe7 {[%clk 0:02:40.2]} 13. Ne2 {[%clk 0:02:09.4]} 13... c5 {[%clk 0:02:38.7]}
14. Nf4 {[%clk 0:02:03.5]} 14... c4 {[%clk 0:02:29.8]} 15. Qd4 {[%clk
0:01:59.7]} 15... Nf5 {[%clk 0:02:29]} 16. Nxd5 {[%clk 0:01:44.9]} 16... Nxd4
{[%clk 0:02:28.2]} 17. Nxe7 {[%clk 0:01:45.3]} 17... Nc2+ {[%clk 0:02:28.2]} 18.
Ke2 {[%clk 0:01:21.9]} 18... Nxa1 {[%clk 0:02:28.1]} 19. Nf5 {[%clk 0:01:20.4]}
19... Nc2 {[%clk 0:02:25.8]} 20. Nxg7+ {[%clk 0:00:59.6]} 20... Kd7 {[%clk
0:02:20.4]} 21. Nf5 {[%clk 0:00:54.9]} 21... b5 {[%clk 0:02:16.6]} 22. Rc1
{[%clk 0:00:51.7]} 22... Nxe3 {[%clk 0:02:14.8]} 23. Nxe3 {[%clk 0:00:46.5]}
23... Nxh5 {[%clk 0:02:15.2]} 24. b3 {[%clk 0:00:41.6]} 24... cxb3 {[%clk
0:02:14.4]} 25. axb3 {[%clk 0:00:42.1]} 25... a5 {[%clk 0:02:14.4]} 26. Ne4
{[%clk 0:00:41.4]} 26... Nf4+ {[%clk 0:02:12.5]} 27. Kf3 {[%clk 0:00:40.7]}
27... Ne6 {[%clk 0:02:12.3]} 28. Nf6+ {[%clk 0:00:38.8]} 28... Kc6 {[%clk
0:02:09.9]} 29. c4 {[%clk 0:00:34.4]} 29... b4 {[%clk 0:02:09.3]} 30. Rd1 {[%clk
0:00:32.9]} 30... Rhd8 {[%clk 0:02:07.6]} 31. Ned5 {[%clk 0:00:32.2]} 31... Nc5
{[%clk 0:02:06.7]} 32. Ne7+ {[%clk 0:00:26.1]} 32... Kb7 {[%clk 0:02:05.6]} 33.
Rh1 {[%clk 0:00:06.5]} 33... Nxb3 {[%clk 0:02:04.7]} 34. Rxh6 {[%clk 0:00:06]}
34... Nd2+ {[%clk 0:02:01.7]} 35. Kf4 {[%clk 0:00:05.3]} 35... Nxc4 {[%clk
0:02:02.6]} 36. Nfd5 {[%clk 0:00:04.2]} 36... b3 {[%clk 0:01:58.8]} 37. Rh1
{[%clk 0:00:01.5]} 37... b2 {[%clk 0:01:58.1]} 38. Rb1 {[%clk 0:00:01.6]} 38...
a4 {[%clk 0:01:58.1]} 0-1

[Event "*** Titled Tuesday Blitz"]
[Site "Chess.com"]
[Date "2021.04.06"]
[Round "2"]
[White "ShapkinAnatoliy"]
[Black "EvilMorty23"]
[Result "1-0"]
[WhiteElo "2667"]
[BlackElo "2456"]
[TimeControl "180+1"]
[EndTime "10:17:04 PDT"]
[Termination "ShapkinAnatoliy won by checkmate"]

1. d4 {[%clk 0:03:00.9]} 1... Nf6 {[%clk 0:03:00]} 2. c4 {[%clk 0:03:01.4]} 2...
e6 {[%clk 0:03:00.2]} 3. g3 {[%clk 0:03:01.4]} 3... d5 {[%clk 0:02:56]} 4. Nf3
{[%clk 0:03:01.6]} 4... Bb4+ {[%clk 0:02:55.8]} 5. Bd2 {[%clk 0:03:00.9]} 5...
Be7 {[%clk 0:02:55.9]} 6. Bg2 {[%clk 0:03:01]} 6... O-O {[%clk 0:02:56.2]} 7.
O-O {[%clk 0:03:01.6]} 7... c6 {[%clk 0:02:56.6]} 8. Qc2 {[%clk 0:03:01.8]} 8...
b6 {[%clk 0:02:57.1]} 9. Bf4 {[%clk 0:03:01]} 9... Nbd7 {[%clk 0:02:57.2]} 10.
Rd1 {[%clk 0:02:59.4]} 10... Ba6 {[%clk 0:02:55.5]} 11. Ne5 {[%clk 0:02:59.2]}
11... Rc8 {[%clk 0:02:54.4]} 12. cxd5 {[%clk 0:02:59.6]} 12... cxd5 {[%clk
0:02:53.3]} 13. Nc6 {[%clk 0:03:00]} 13... Qe8 {[%clk 0:02:51.3]} 14. Nxe7+
{[%clk 0:02:58.4]} 14... Qxe7 {[%clk 0:02:52.2]} 15. Nc3 {[%clk 0:02:57.2]}
15... Nh5 {[%clk 0:02:41.3]} 16. Be3 {[%clk 0:02:46.6]} 16... f5 {[%clk
0:02:41.1]} 17. Qa4 {[%clk 0:02:45.3]} 17... Nb8 {[%clk 0:02:41.3]} 18. Bf3
{[%clk 0:02:41]} 18... Nf6 {[%clk 0:02:40.4]} 19. Bf4 {[%clk 0:02:41.2]} 19...
Qb7 {[%clk 0:02:21.3]} 20. Nb5 {[%clk 0:02:29.7]} 20... Rc4 {[%clk 0:02:20.8]}
21. Qxc4 {[%clk 0:02:23.2]} 21... dxc4 {[%clk 0:02:17.9]} 22. Bxb7 {[%clk
0:02:24.1]} 22... Bxb7 {[%clk 0:02:18.5]} 23. Nxa7 {[%clk 0:02:15.7]} 23... Nbd7
{[%clk 0:02:00.5]} 24. Nb5 {[%clk 0:02:11.3]} 24... Nd5 {[%clk 0:02:00.1]} 25.
Nd6 {[%clk 0:02:00.6]} 25... Bc6 {[%clk 0:01:59.9]} 26. Nxc4 {[%clk 0:01:58.2]}
26... Nxf4 {[%clk 0:01:58.9]} 27. gxf4 {[%clk 0:01:57.7]} 27... Rf6 {[%clk
0:01:59.2]} 28. f3 {[%clk 0:01:57.3]} 28... Rg6+ {[%clk 0:01:57]} 29. Kf2 {[%clk
0:01:57.1]} 29... Rh6 {[%clk 0:01:57.9]} 30. Rh1 {[%clk 0:01:47]} 30... Rh4
{[%clk 0:01:52.5]} 31. Kg3 {[%clk 0:01:41.9]} 31... g5 {[%clk 0:01:52.8]} 32. e3
{[%clk 0:01:38.2]} 32... h6 {[%clk 0:01:48.7]} 33. Rac1 {[%clk 0:01:36.9]} 33...
Nf6 {[%clk 0:01:46.8]} 34. fxg5 {[%clk 0:01:25.8]} 34... hxg5 {[%clk 0:01:45.5]}
35. Nxb6 {[%clk 0:01:26.1]} 35... f4+ {[%clk 0:01:40.1]} 36. exf4 {[%clk
0:01:20.9]} 36... Nh5+ {[%clk 0:01:40.4]} 37. Kf2 {[%clk 0:01:20.7]} 37... Bb7
{[%clk 0:01:38.4]} 38. Rc7 {[%clk 0:01:14.3]} 38... Ba6 {[%clk 0:01:34.1]} 39.
Ra7 {[%clk 0:01:14.2]} 39... Bb5 {[%clk 0:01:31.9]} 40. Rc1 {[%clk 0:01:10.7]}
40... Nf6 {[%clk 0:01:22.3]} 41. fxg5 {[%clk 0:01:06.3]} 41... Ne8 {[%clk
0:01:22.6]} 42. Kg3 {[%clk 0:01:05.9]} 42... Rxd4 {[%clk 0:01:19.9]} 43. a4
{[%clk 0:01:06.7]} 43... e5 {[%clk 0:01:15.8]} 44. axb5 {[%clk 0:01:05.9]} 44...
e4 {[%clk 0:01:16.2]} 45. Rc8 {[%clk 0:01:05.9]} 45... Kf8 {[%clk 0:01:15.7]}
46. Nd7+ {[%clk 0:01:03]} 46... Ke7 {[%clk 0:01:15.6]} 47. Nf6+ {[%clk
0:01:03.6]} 47... Ke6 {[%clk 0:01:15.5]} 48. Rxe8+ {[%clk 0:01:03.9]} 48... Kf5
{[%clk 0:01:16.1]} 49. fxe4+ {[%clk 0:01:03.2]} 49... Kg6 {[%clk 0:01:15.3]} 50.
Rg8# {[%clk 0:01:00.5]} 1-0

[Event "*** Titled Tuesday Blitz"]
[Site "Chess.com"]
[Date "2021.04.06"]
[Round "2"]
[White "Joshukid"]
[Black "gumimis"]
[Result "0-1"]
[WhiteElo "2571"]
[BlackElo "2331"]
[TimeControl "180+1"]
[EndTime "10:17:05 PDT"]
[Termination "gumimis won by resignation"]

1. Nf3 {[%clk 0:03:00.9]} 1... b6 {[%clk 0:02:57.4]} 2. g3 {[%clk 0:03:00.4]}
2... Bb7 {[%clk 0:02:58.3]} 3. Bg2 {[%clk 0:03:01.3]} 3... Nf6 {[%clk
0:02:57.1]} 4. O-O {[%clk 0:03:01.8]} 4... g6 {[%clk 0:02:56.4]} 5. b3 {[%clk
0:02:53.2]} 5... Bg7 {[%clk 0:02:56.4]} 6. Bb2 {[%clk 0:02:52.7]} 6... O-O
{[%clk 0:02:56.7]} 7. c4 {[%clk 0:02:52.7]} 7... d6 {[%clk 0:02:54.4]} 8. d4
{[%clk 0:02:52.4]} 8... Nbd7 {[%clk 0:02:53.9]} 9. Nc3 {[%clk 0:02:49.1]} 9...
e6 {[%clk 0:02:47]} 10. Qc2 {[%clk 0:02:46.1]} 10... c5 {[%clk 0:02:46.5]} 11.
Rad1 {[%clk 0:02:45.1]} 11... Qe7 {[%clk 0:02:43.3]} 12. e4 {[%clk 0:02:39.9]}
12... Ne8 {[%clk 0:02:27.4]} 13. Rfe1 {[%clk 0:02:36.9]} 13... Nc7 {[%clk
0:02:26.5]} 14. h4 {[%clk 0:02:31.1]} 14... a6 {[%clk 0:02:13.5]} 15. h5 {[%clk
0:02:24]} 15... b5 {[%clk 0:02:12]} 16. hxg6 {[%clk 0:01:54]} 16... fxg6 {[%clk
0:02:12.9]} 17. dxc5 {[%clk 0:01:50]} 17... Nxc5 {[%clk 0:01:51]} 18. Nd2 {[%clk
0:01:44.1]} 18... Qf6 {[%clk 0:01:43.6]} 19. f3 {[%clk 0:01:31.9]} 19... Qd4+
{[%clk 0:01:39.2]} 20. Kh2 {[%clk 0:01:29.6]} 20... Qd3 {[%clk 0:01:37.2]} 21.
Qc1 {[%clk 0:01:24.3]} 21... Bh6 {[%clk 0:01:21.7]} 22. Bf1 {[%clk 0:01:04.6]}
22... Qd4 {[%clk 0:01:20.8]} 23. Kg2 {[%clk 0:00:52.7]} 23... Nd3 {[%clk
0:01:15.4]} 24. Bxd3 {[%clk 0:00:28.7]} 24... Qxd3 {[%clk 0:01:16.3]} 25. f4
{[%clk 0:00:25.6]} 25... Bxf4 {[%clk 0:01:01.3]} 26. gxf4 {[%clk 0:00:20.3]}
26... Rxf4 {[%clk 0:01:02.2]} 27. Nf3 {[%clk 0:00:20.5]} 27... Qxf3+ {[%clk
0:01:01.1]} 0-1

[Event "*** Titled Tuesday Blitz"]
[Site "Chess.com"]
[Date "2021.04.06"]
[Round "2"]
[White "mitrabhaa"]
[Black "kuba2006"]
[Result "1-0"]
[WhiteElo "2733"]
[BlackElo "2339"]
[TimeControl "180+1"]
[EndTime "10:17:08 PDT"]
[Termination "mitrabhaa won by checkmate"]

1. Nf3 {[%clk 0:03:00.9]} 1... Nf6 {[%clk 0:03:00.9]} 2. g3 {[%clk 0:02:59]}
2... d6 {[%clk 0:02:58.7]} 3. Bg2 {[%clk 0:02:59.9]} 3... g6 {[%clk 0:02:58.4]}
4. O-O {[%clk 0:03:00.8]} 4... Bg7 {[%clk 0:02:58.8]} 5. d4 {[%clk 0:03:01.7]}
5... Nbd7 {[%clk 0:02:56.5]} 6. c4 {[%clk 0:03:02.6]} 6... e5 {[%clk 0:02:56.1]}
7. Nc3 {[%clk 0:03:03.5]} 7... O-O {[%clk 0:02:54.6]} 8. h3 {[%clk 0:03:03.4]}
8... c6 {[%clk 0:02:51.9]} 9. e4 {[%clk 0:03:03.3]} 9... a6 {[%clk 0:02:48.9]}
10. a4 {[%clk 0:03:02.1]} 10... a5 {[%clk 0:02:47.5]} 11. Be3 {[%clk 0:03:01.6]}
11... exd4 {[%clk 0:02:43.3]} 12. Nxd4 {[%clk 0:03:01.7]} 12... Re8 {[%clk
0:02:41.6]} 13. Qc2 {[%clk 0:03:00.8]} 13... Nc5 {[%clk 0:02:38.9]} 14. Rad1
{[%clk 0:02:59.5]} 14... Nfd7 {[%clk 0:02:36.6]} 15. b3 {[%clk 0:02:57.8]} 15...
Na6 {[%clk 0:02:31.7]} 16. Nde2 {[%clk 0:02:55.4]} 16... Qe7 {[%clk 0:02:27.7]}
17. Qd2 {[%clk 0:02:54.6]} 17... Ndc5 {[%clk 0:02:18.8]} 18. Rb1 {[%clk
0:02:50.8]} 18... Nb4 {[%clk 0:02:09.8]} 19. Kh2 {[%clk 0:02:49.3]} 19... Be6
{[%clk 0:02:06.9]} 20. Nd4 {[%clk 0:02:49]} 20... Rad8 {[%clk 0:01:57.9]} 21. f4
{[%clk 0:02:48.8]} 21... Bc8 {[%clk 0:01:52.6]} 22. Bg1 {[%clk 0:02:47.5]} 22...
h5 {[%clk 0:01:41.2]} 23. h4 {[%clk 0:02:47]} 23... Bf6 {[%clk 0:01:37.9]} 24.
Bf2 {[%clk 0:02:46.6]} 24... Nbd3 {[%clk 0:01:28.3]} 25. Nf3 {[%clk 0:02:43.4]}
25... Nxf2 {[%clk 0:01:22.4]} 26. Rxf2 {[%clk 0:02:43]} 26... Bxc3 {[%clk
0:01:21.8]} 27. Qxc3 {[%clk 0:02:42.4]} 27... Nxe4 {[%clk 0:01:21.7]} 28. Qe1
{[%clk 0:02:42.7]} 28... Nxf2 {[%clk 0:01:20]} 29. Qxf2 {[%clk 0:02:42.7]} 29...
Qe3 {[%clk 0:01:15.5]} 30. Qb2 {[%clk 0:02:41.7]} 30... Bg4 {[%clk 0:01:07.4]}
31. Ng5 {[%clk 0:02:41.6]} 31... Rd7 {[%clk 0:00:30.3]} 32. Qf6 {[%clk
0:02:37.9]} 32... Qe7 {[%clk 0:00:29.4]} 33. Qc3 {[%clk 0:02:37.5]} 33... Qd8
{[%clk 0:00:28.5]} 34. Ne4 {[%clk 0:02:36.8]} 34... Re6 {[%clk 0:00:16.4]} 35.
Rb2 {[%clk 0:02:32.9]} 35... Qe7 {[%clk 0:00:12.4]} 36. Ng5 {[%clk 0:02:32.7]}
36... Re2 {[%clk 0:00:10.4]} 37. Rxe2 {[%clk 0:02:31.6]} 37... Qxe2 {[%clk
0:00:11.3]} 38. Ne4 {[%clk 0:02:31.3]} 38... Re7 {[%clk 0:00:06.2]} 39. Nf6+
{[%clk 0:02:31.1]} 39... Kf8 {[%clk 0:00:06.6]} 40. Nxg4 {[%clk 0:02:31.3]}
40... Ke8 {[%clk 0:00:03.9]} 41. Nf6+ {[%clk 0:02:29.1]} 41... Kd8 {[%clk
0:00:03.9]} 42. Qxa5+ {[%clk 0:02:29]} 42... Kc8 {[%clk 0:00:03.7]} 43. Qa8+
{[%clk 0:02:28.5]} 43... Kc7 {[%clk 0:00:04.1]} 44. Qa5+ {[%clk 0:02:25.3]}
44... Kc8 {[%clk 0:00:02.4]} 45. f5 {[%clk 0:02:23.5]} 45... Qf2 {[%clk
0:00:01.9]} 46. Qa8+ {[%clk 0:02:18.6]} 46... Kc7 {[%clk 0:00:01.6]} 47. Ne8+
{[%clk 0:02:18.3]} 47... Kd7 {[%clk 0:00:01.6]} 48. Qxb7+ {[%clk 0:02:17.8]}
48... Kxe8 {[%clk 0:00:01.6]} 49. Qc8# {[%clk 0:02:17.9]} 1-0

[Event "*** Titled Tuesday Blitz"]
[Site "Chess.com"]
[Date "2021.04.06"]
[Round "2"]
[White "Ave_Mariia"]
[Black "BeyondMadness"]
[Result "1-0"]
[WhiteElo "2477"]
[BlackElo "2256"]
[TimeControl "180+1"]
[EndTime "10:17:08 PDT"]
[Termination "Ave_Mariia won by resignation"]

1. d4 {[%clk 0:03:00.9]} 1... Nf6 {[%clk 0:02:59.3]} 2. c4 {[%clk 0:03:01.2]}
2... c5 {[%clk 0:02:58.8]} 3. d5 {[%clk 0:03:01.1]} 3... e6 {[%clk 0:02:59.1]}
4. Nc3 {[%clk 0:02:58.2]} 4... exd5 {[%clk 0:02:59.2]} 5. cxd5 {[%clk
0:02:58.2]} 5... d6 {[%clk 0:02:59.7]} 6. g3 {[%clk 0:02:58.3]} 6... g6 {[%clk
0:02:59.8]} 7. Bg2 {[%clk 0:02:58.5]} 7... Bg7 {[%clk 0:03:00.3]} 8. Nf3 {[%clk
0:02:59.1]} 8... O-O {[%clk 0:03:00.5]} 9. O-O {[%clk 0:02:59.8]} 9... Re8
{[%clk 0:02:59.9]} 10. Bf4 {[%clk 0:02:58.6]} 10... Ne4 {[%clk 0:02:57.2]} 11.
Nxe4 {[%clk 0:02:51.8]} 11... Rxe4 {[%clk 0:02:58.1]} 12. Nd2 {[%clk 0:02:52.2]}
12... Rxf4 {[%clk 0:02:52.3]} 13. gxf4 {[%clk 0:02:51.9]} 13... Bxb2 {[%clk
0:02:52.9]} 14. Rb1 {[%clk 0:02:51.5]} 14... Bg7 {[%clk 0:02:51.8]} 15. Nc4
{[%clk 0:02:50.6]} 15... b6 {[%clk 0:02:47.2]} 16. e4 {[%clk 0:02:32.5]} 16...
Ba6 {[%clk 0:02:46.4]} 17. Rc1 {[%clk 0:02:30.7]} 17... Bxc4 {[%clk 0:02:42.5]}
18. Rxc4 {[%clk 0:02:30.5]} 18... Nd7 {[%clk 0:02:42]} 19. Re1 {[%clk
0:02:20.5]} 19... Qh4 {[%clk 0:02:36.1]} 20. Qf3 {[%clk 0:02:14.8]} 20... Bh6
{[%clk 0:02:26.5]} 21. e5 {[%clk 0:02:11.4]} 21... Nxe5 {[%clk 0:01:56]} 22.
fxe5 {[%clk 0:01:56.6]} 22... Qxc4 {[%clk 0:01:56.9]} 23. exd6 {[%clk
0:01:52.2]} 23... Qf4 {[%clk 0:01:44.2]} 24. Qxf4 {[%clk 0:01:45.1]} 24... Bxf4
{[%clk 0:01:43.3]} 25. d7 {[%clk 0:01:45.8]} 25... Kf8 {[%clk 0:01:35.1]} 26. d6
{[%clk 0:01:46.2]} 26... Rd8 {[%clk 0:01:30.6]} 27. Bc6 {[%clk 0:01:43.4]} 27...
Bg5 {[%clk 0:01:26.1]} 28. Re8+ {[%clk 0:01:36.9]} 28... Kg7 {[%clk 0:01:25.7]}
29. f4 {[%clk 0:01:35.6]} 29... Bh4 {[%clk 0:01:18.3]} 30. Kf1 {[%clk
0:01:31.7]} 30... f5 {[%clk 0:00:58]} 31. Ke2 {[%clk 0:01:27.6]} 31... Kf7
{[%clk 0:00:51.7]} 32. Kd3 {[%clk 0:01:27.8]} 32... Bf6 {[%clk 0:00:42.4]} 33.
Kc4 {[%clk 0:01:27.9]} 33... a6 {[%clk 0:00:37.8]} 34. Bd5+ {[%clk 0:01:21.2]}
34... Kg7 {[%clk 0:00:34.7]} 35. Be6 {[%clk 0:01:21.4]} 35... h6 {[%clk
0:00:30.3]} 36. Kd5 {[%clk 0:01:21.2]} 36... h5 {[%clk 0:00:19.2]} 37. Kc6
{[%clk 0:01:20.6]} 1-0